[Event "Titled Tuesday Blitz February 28 Early 2023"]
[White "Vifleemskaia, Svetlana"]
[Black "Jaskolka, Tomasz"]
[WhiteFideId "4129490"]
[BlackFideId "1170791"]
[WhiteElo "1930"]
[BlackElo "2155"]
[Result "0-1"]
[Round "07"]
[TimeControl "180+2"]
[Date "2023.02.28"]
[WhiteClock "0:00:46"]
[BlackClock "0:01:17"]

1. d4 {[%clk 0:02:48]}  d5 {[%clk 0:02:55]} 2. c4 {[%clk 0:02:48]}  e5 {[%clk 0:02:56]} 3. dxe5 {[%clk 0:02:48]}  d4 {[%clk 0:02:56]} 4. Nf3 {[%clk 0:02:47]}  Nc6 {[%clk 0:02:56]} 5. a3 {[%clk 0:02:47]}  a5 {[%clk 0:02:42]} 6. Bf4 {[%clk 0:02:23]}  Nge7 {[%clk 0:02:41]} 7. Nbd2 {[%clk 0:02:21]}  Ng6 {[%clk 0:02:40]} 8. Bg3 {[%clk 0:02:21]}  Bf5 {[%clk 0:02:33]} 9. Qa4 {[%clk 0:02:19]}  Qd7 {[%clk 0:02:29]} 10. h4 {[%clk 0:02:07]}  h5 {[%clk 0:02:24]} 11. Qb5 {[%clk 0:01:58]}  Ra6 {[%clk 0:02:13]} 12. Qd5 {[%clk 0:01:53]}  Rb6 {[%clk 0:02:03]} 13. Qxd7+ {[%clk 0:01:51]}  Kxd7 {[%clk 0:02:02]} 14. O-O-O {[%clk 0:01:46]}  Bc5 {[%clk 0:01:40]} 15. e3 {[%clk 0:01:31]}  Ke7 {[%clk 0:01:32]} 16. exd4 {[%clk 0:01:16]}  Nxd4 {[%clk 0:01:17]} 17. Be2 {[%clk 0:00:46]}  Nxe2# {[%clk 0:01:17]} 0-1


[Site "https://www.chess.com"]

[Event "Titled Tuesday Blitz February 28 Early 2023"]
[White "Derjabin, Ilja"]
[Black "Melikhov, Evgeny V."]
[WhiteFideId "14104768"]
[BlackFideId "4122046"]
[WhiteElo "2309"]
[BlackElo "2158"]
[Result "1-0"]
[Round "07"]
[TimeControl "180+2"]
[Date "2023.02.28"]
[WhiteClock "0:00:09"]
[BlackClock "0:00:03"]

1. d4 {[%clk 0:03:00]}  Nf6 {[%clk 0:02:59]} 2. c4 {[%clk 0:02:48]}  e6 {[%clk 0:02:59]} 3. Nc3 {[%clk 0:02:48]}  Bb4 {[%clk 0:02:57]} 4. a3 {[%clk 0:02:48]}  Bxc3+ {[%clk 0:02:56]} 5. bxc3 {[%clk 0:02:49]}  d5 {[%clk 0:02:56]} 6. f3 {[%clk 0:02:49]}  c6 {[%clk 0:02:56]} 7. e3 {[%clk 0:02:48]}  O-O {[%clk 0:02:51]} 8. Bd3 {[%clk 0:02:48]}  b6 {[%clk 0:02:50]} 9. cxd5 {[%clk 0:02:47]}  cxd5 {[%clk 0:02:50]} 10. Ne2 {[%clk 0:02:47]}  Ba6 {[%clk 0:02:49]} 11. Bxa6 {[%clk 0:02:47]}  Nxa6 {[%clk 0:02:49]} 12. O-O {[%clk 0:02:48]}  Nc7 {[%clk 0:02:29]} 13. a4 {[%clk 0:02:45]}  Nce8 {[%clk 0:02:21]} 14. Ba3 {[%clk 0:02:41]}  Nd6 {[%clk 0:02:20]} 15. a5 {[%clk 0:02:35]}  Qc7 {[%clk 0:02:11]} 16. a6 {[%clk 0:02:25]}  Rfc8 {[%clk 0:01:56]} 17. Bb4 {[%clk 0:02:22]}  Nc4 {[%clk 0:01:54]} 18. Qd3 {[%clk 0:02:21]}  Rab8 {[%clk 0:01:43]} 19. Ra2 {[%clk 0:02:18]}  Qc6 {[%clk 0:01:22]} 20. g4 {[%clk 0:02:15]}  e5 {[%clk 0:01:13]} 21. Ng3 {[%clk 0:02:11]}  e4 {[%clk 0:01:08]} 22. fxe4 {[%clk 0:02:10]}  Nxe4 {[%clk 0:01:08]} 23. Nxe4 {[%clk 0:01:53]}  dxe4 {[%clk 0:01:07]} 24. Qe2 {[%clk 0:01:53]}  Qg6 {[%clk 0:00:45]} 25. Kh1 {[%clk 0:01:50]}  Rc6 {[%clk 0:00:44]} 26. Raa1 {[%clk 0:01:46]}  Rbc8 {[%clk 0:00:42]} 27. Rad1 {[%clk 0:01:42]}  Rf6 {[%clk 0:00:23]} 28. d5 {[%clk 0:01:26]}  Rxf1+ {[%clk 0:00:22]} 29. Rxf1 {[%clk 0:01:27]}  Ne5 {[%clk 0:00:20]} 30. d6 {[%clk 0:01:26]}  Nf3 {[%clk 0:00:20]} 31. h3 {[%clk 0:01:06]}  Rd8 {[%clk 0:00:17]} 32. Rd1 {[%clk 0:01:05]}  Qe6 {[%clk 0:00:16]} 33. Kg2 {[%clk 0:00:52]}  h5 {[%clk 0:00:15]} 34. gxh5 {[%clk 0:00:48]}  Qf5 {[%clk 0:00:14]} 35. Qf2 {[%clk 0:00:26]}  Qxh5 {[%clk 0:00:12]} 36. Rf1 {[%clk 0:00:09]}  Rd7 {[%clk 0:00:07]} 37. Qg3 {[%clk 0:00:09]}  Qg6 {[%clk 0:00:05]} 38. Qxg6 {[%clk 0:00:08]}  fxg6 {[%clk 0:00:06]} 39. Kg3 {[%clk 0:00:09]}  Kf7 {[%clk 0:00:06]} 40. Rd1 {[%clk 0:00:08]}  Ke6 {[%clk 0:00:06]} 41. c4 {[%clk 0:00:07]}  g5 {[%clk 0:00:05]} 42. c5 {[%clk 0:00:08]}  bxc5 {[%clk 0:00:04]} 43. Bxc5 {[%clk 0:00:09]}  Ke5 {[%clk 0:00:03]} 44. Rb1 {[%clk 0:00:09]} 1-0


[Site "https://www.chess.com"]

[Event "Titled Tuesday Blitz February 28 Early 2023"]
[White "Prieto Aranguren, Alain"]
[Black "Bilan, Danila"]
[WhiteFideId "2268906"]
[BlackFideId "24161918"]
[WhiteElo "2209"]
[BlackElo "2182"]
[Result "1-0"]
[Round "07"]
[TimeControl "180+2"]
[Date "2023.02.28"]
[WhiteClock "0:01:36"]
[BlackClock "0:00:05"]

1. d4 {[%clk 0:03:00]}  d5 {[%clk 0:02:59]} 2. c4 {[%clk 0:03:00]}  c6 {[%clk 0:02:58]} 3. cxd5 {[%clk 0:02:59]}  cxd5 {[%clk 0:02:58]} 4. Nf3 {[%clk 0:02:59]}  Nf6 {[%clk 0:02:59]} 5. Nc3 {[%clk 0:03:00]}  Nc6 {[%clk 0:02:59]} 6. Bf4 {[%clk 0:03:00]}  Bf5 {[%clk 0:02:59]} 7. e3 {[%clk 0:03:00]}  e6 {[%clk 0:02:59]} 8. Bd3 {[%clk 0:03:00]}  Bg6 {[%clk 0:02:59]} 9. O-O {[%clk 0:02:59]}  Bd6 {[%clk 0:02:59]} 10. Ne5 {[%clk 0:02:55]}  Bxe5 {[%clk 0:02:55]} 11. dxe5 {[%clk 0:02:52]}  Nd7 {[%clk 0:02:48]} 12. Bxg6 {[%clk 0:02:50]}  hxg6 {[%clk 0:02:48]} 13. e4 {[%clk 0:02:33]}  d4 {[%clk 0:01:51]} 14. Nb5 {[%clk 0:02:33]}  Ndxe5 {[%clk 0:01:40]} 15. Bxe5 {[%clk 0:02:29]}  Nxe5 {[%clk 0:01:41]} 16. Qxd4 {[%clk 0:02:24]}  Qh4 {[%clk 0:00:55]} 17. Qxe5 {[%clk 0:02:21]}  Rh5 {[%clk 0:00:49]} 18. Nc7+ {[%clk 0:02:13]}  Kd7 {[%clk 0:00:43]} 19. Rfd1+ {[%clk 0:02:05]}  Kc8 {[%clk 0:00:41]} 20. Qd6 {[%clk 0:02:02]}  b6 {[%clk 0:00:14]} 21. Rac1 {[%clk 0:01:55]}  e5 {[%clk 0:00:10]} 22. Nxa8+ {[%clk 0:01:45]}  Kb7 {[%clk 0:00:11]} 23. Qc6+ {[%clk 0:01:43]}  Ka6 {[%clk 0:00:10]} 24. h3 {[%clk 0:01:38]}  Rg5 {[%clk 0:00:05]} 25. Nc7+ {[%clk 0:01:37]}  Ka5 {[%clk 0:00:05]} 26. Qb5# {[%clk 0:01:36]} 1-0


[Site "https://www.chess.com"]

[Event "Titled Tuesday Blitz February 28 Early 2023"]
[White "Sailer, Mike"]
[Black "Avazkhonov, Alikhon"]
[WhiteFideId "2012901"]
[BlackFideId "14208504"]
[WhiteElo "2109"]
[BlackElo "1739"]
[Result "0-1"]
[Round "07"]
[TimeControl "180+2"]
[Date "2023.02.28"]
[WhiteClock "0:00:02"]
[BlackClock "0:00:38"]

1. d4 {[%clk 0:02:53]}  Nf6 {[%clk 0:02:59]} 2. Bg5 {[%clk 0:02:53]}  Ne4 {[%clk 0:02:58]} 3. Bf4 {[%clk 0:02:53]}  c5 {[%clk 0:02:56]} 4. d5 {[%clk 0:02:53]}  Qb6 {[%clk 0:02:54]} 5. Bc1 {[%clk 0:02:53]}  c4 {[%clk 0:02:52]} 6. e3 {[%clk 0:02:41]}  e6 {[%clk 0:02:32]} 7. f3 {[%clk 0:02:28]}  Nf6 {[%clk 0:02:25]} 8. Nc3 {[%clk 0:02:22]}  Bb4 {[%clk 0:02:23]} 9. Bxc4 {[%clk 0:02:04]}  exd5 {[%clk 0:02:23]} 10. Bxd5 {[%clk 0:01:59]}  Qa5 {[%clk 0:02:12]} 11. e4 {[%clk 0:01:48]}  Nxd5 {[%clk 0:02:01]} 12. exd5 {[%clk 0:01:44]}  Bxc3+ {[%clk 0:02:02]} 13. bxc3 {[%clk 0:01:44]}  Qxc3+ {[%clk 0:02:03]} 14. Bd2 {[%clk 0:01:44]}  Qe5+ {[%clk 0:02:03]} 15. Ne2 {[%clk 0:01:44]}  O-O {[%clk 0:02:03]} 16. O-O {[%clk 0:01:41]}  Qxd5 {[%clk 0:02:02]} 17. Qc1 {[%clk 0:01:37]}  Nc6 {[%clk 0:02:01]} 18. Ng3 {[%clk 0:01:24]}  Qc4 {[%clk 0:01:34]} 19. Kh1 {[%clk 0:01:07]}  d5 {[%clk 0:01:33]} 20. Re1 {[%clk 0:01:01]}  Be6 {[%clk 0:01:31]} 21. Bf4 {[%clk 0:01:01]}  Rac8 {[%clk 0:01:30]} 22. Bd6 {[%clk 0:00:48]}  Rfd8 {[%clk 0:01:26]} 23. Ba3 {[%clk 0:00:48]}  Nd4 {[%clk 0:01:25]} 24. Qg5 {[%clk 0:00:28]}  Nxc2 {[%clk 0:01:16]} 25. Bb2 {[%clk 0:00:11]}  d4 {[%clk 0:01:10]} 26. Rac1 {[%clk 0:00:11]}  Qd5 {[%clk 0:01:08]} 27. Qxd5 {[%clk 0:00:05]}  Rxd5 {[%clk 0:01:08]} 28. Red1 {[%clk 0:00:06]}  d3 {[%clk 0:01:05]} 29. Ne4 {[%clk 0:00:05]}  Rcd8 {[%clk 0:01:01]} 30. Rd2 {[%clk 0:00:03]}  h6 {[%clk 0:00:49]} 31. g4 {[%clk 0:00:02]}  Kh7 {[%clk 0:00:41]} 32. Kg2 {[%clk 0:00:02]}  Rb5 {[%clk 0:00:39]} 33. Bc3 {[%clk 0:00:02]}  Ne3+ {[%clk 0:00:38]} 0-1


[Site "https://www.chess.com"]

[Event "Titled Tuesday Blitz February 28 Early 2023"]
[White "Fiorito, Joaquin"]
[Black "Chernov, Mikhail"]
[WhiteFideId "180173"]
[BlackFideId "24143170"]
[WhiteElo "2157"]
[BlackElo "2113"]
[Result "1-0"]
[Round "07"]
[TimeControl "180+2"]
[Date "2023.02.28"]
[WhiteClock "0:00:25"]
[BlackClock "0:00:04"]

1. d4 {[%clk 0:03:00]}  d5 {[%clk 0:02:59]} 2. Nc3 {[%clk 0:03:01]}  Nf6 {[%clk 0:02:56]} 3. Bf4 {[%clk 0:03:01]}  c6 {[%clk 0:02:52]} 4. e3 {[%clk 0:03:01]}  Nbd7 {[%clk 0:02:46]} 5. Nf3 {[%clk 0:02:57]}  e6 {[%clk 0:02:44]} 6. h3 {[%clk 0:02:55]}  Bb4 {[%clk 0:02:41]} 7. Bd3 {[%clk 0:02:55]}  Qa5 {[%clk 0:02:38]} 8. Qd2 {[%clk 0:02:52]}  c5 {[%clk 0:02:29]} 9. dxc5 {[%clk 0:02:47]}  Nxc5 {[%clk 0:02:23]} 10. Bb5+ {[%clk 0:01:54]}  Bd7 {[%clk 0:02:16]} 11. Bxd7+ {[%clk 0:01:53]}  Ncxd7 {[%clk 0:01:56]} 12. O-O {[%clk 0:01:19]}  Ne4 {[%clk 0:01:43]} 13. Qe2 {[%clk 0:01:19]}  Nxc3 {[%clk 0:01:36]} 14. bxc3 {[%clk 0:01:19]}  Bxc3 {[%clk 0:01:37]} 15. Rab1 {[%clk 0:01:19]}  b6 {[%clk 0:01:19]} 16. Bd6 {[%clk 0:01:16]}  Qxa2 {[%clk 0:01:05]} 17. Qb5 {[%clk 0:01:04]}  Qc4 {[%clk 0:01:01]} 18. Qxc4 {[%clk 0:00:44]}  dxc4 {[%clk 0:01:01]} 19. Rfd1 {[%clk 0:00:45]}  f6 {[%clk 0:00:32]} 20. e4 {[%clk 0:00:40]}  e5 {[%clk 0:00:25]} 21. Nh4 {[%clk 0:00:34]}  a5 {[%clk 0:00:24]} 22. Nf5 {[%clk 0:00:33]}  g6 {[%clk 0:00:13]} 23. Ne3 {[%clk 0:00:32]}  Bd4 {[%clk 0:00:09]} 24. Nxc4 {[%clk 0:00:30]}  a4 {[%clk 0:00:08]} 25. Bb4 {[%clk 0:00:27]}  Kf7 {[%clk 0:00:06]} 26. c3 {[%clk 0:00:26]}  Nc5 {[%clk 0:00:03]} 27. cxd4 {[%clk 0:00:26]}  exd4 {[%clk 0:00:04]} 28. Nxb6 {[%clk 0:00:25]}  Rac8 {[%clk 0:00:04]} 29. Nxc8 {[%clk 0:00:25]} 1-0


[Site "https://www.chess.com"]

[Event "Titled Tuesday Blitz February 28 Early 2023"]
[White "Ezat, Mohamed"]
[Black "Boraso, Alessio"]
[WhiteFideId "10600906"]
[BlackFideId "848077"]
[WhiteElo "2388"]
[BlackElo "2286"]
[Result "1-0"]
[Round "07"]
[TimeControl "180+2"]
[Date "2023.02.28"]
[WhiteClock "0:00:49"]
[BlackClock "0:00:01"]

1. d4 {[%clk 0:02:43]}  e6 {[%clk 0:03:00]} 2. c4 {[%clk 0:02:38]}  Nf6 {[%clk 0:03:00]} 3. Nc3 {[%clk 0:02:37]}  c5 {[%clk 0:03:00]} 4. d5 {[%clk 0:02:34]}  exd5 {[%clk 0:03:01]} 5. cxd5 {[%clk 0:02:34]}  d6 {[%clk 0:03:02]} 6. e4 {[%clk 0:02:35]}  g6 {[%clk 0:03:02]} 7. f4 {[%clk 0:02:35]}  Bg7 {[%clk 0:03:02]} 8. Bb5+ {[%clk 0:02:36]}  Nbd7 {[%clk 0:02:55]} 9. e5 {[%clk 0:02:34]}  dxe5 {[%clk 0:02:56]} 10. fxe5 {[%clk 0:02:34]}  Nh5 {[%clk 0:02:57]} 11. e6 {[%clk 0:02:34]}  Qh4+ {[%clk 0:02:56]} 12. g3 {[%clk 0:02:34]}  Nxg3 {[%clk 0:02:57]} 13. hxg3 {[%clk 0:02:34]}  Qxh1 {[%clk 0:02:56]} 14. exd7+ {[%clk 0:02:33]}  Bxd7 {[%clk 0:02:51]} 15. Bxd7+ {[%clk 0:02:32]}  Kxd7 {[%clk 0:02:51]} 16. Qa4+ {[%clk 0:02:31]}  Kd8 {[%clk 0:02:19]} 17. Qh4+ {[%clk 0:02:29]}  Qxh4 {[%clk 0:02:16]} 18. gxh4 {[%clk 0:02:29]}  Re8+ {[%clk 0:02:02]} 19. Nge2 {[%clk 0:02:23]}  Kd7 {[%clk 0:02:01]} 20. Kf2 {[%clk 0:02:17]}  Bf6 {[%clk 0:01:51]} 21. Bg5 {[%clk 0:02:16]}  Bxg5 {[%clk 0:01:45]} 22. hxg5 {[%clk 0:02:16]}  Re5 {[%clk 0:01:45]} 23. Rg1 {[%clk 0:02:13]}  Rae8 {[%clk 0:01:46]} 24. Rg3 {[%clk 0:02:06]}  Rf5+ {[%clk 0:01:45]} 25. Rf3 {[%clk 0:02:03]}  Ree5 {[%clk 0:01:43]} 26. Nf4 {[%clk 0:01:55]}  Rxg5 {[%clk 0:01:39]} 27. Nd3 {[%clk 0:01:55]}  Ref5 {[%clk 0:01:33]} 28. Nxc5+ {[%clk 0:01:55]}  Kc7 {[%clk 0:01:29]} 29. Rxf5 {[%clk 0:01:14]}  Rxf5+ {[%clk 0:01:29]} 30. Ke3 {[%clk 0:01:14]}  h5 {[%clk 0:01:07]} 31. Kd4 {[%clk 0:01:10]}  h4 {[%clk 0:00:58]} 32. a4 {[%clk 0:01:01]}  h3 {[%clk 0:00:41]} 33. Nb5+ {[%clk 0:01:01]}  Kb8 {[%clk 0:00:11]} 34. d6 {[%clk 0:00:58]}  b6 {[%clk 0:00:07]} 35. d7 {[%clk 0:00:55]}  bxc5+ {[%clk 0:00:01]} 36. Kc4 {[%clk 0:00:51]}  Rf4+ {[%clk 0:00:01]} 37. Kxc5 {[%clk 0:00:50]}  Rf5+ {[%clk 0:00:01]} 38. Kc6 {[%clk 0:00:49]} 1-0


[Site "https://www.chess.com"]

[Event "Titled Tuesday Blitz February 28 Early 2023"]
[White "Korpics, Zsolt"]
[Black "Omelja, Artem"]
[WhiteFideId "705241"]
[BlackFideId "14119846"]
[WhiteElo "2361"]
[BlackElo "2404"]
[Result "0-1"]
[Round "07"]
[TimeControl "180+2"]
[Date "2023.02.28"]
[WhiteClock "0:00:19"]
[BlackClock "0:00:18"]

1. e4 {[%clk 0:03:00]}  c5 {[%clk 0:02:59]} 2. Nf3 {[%clk 0:03:00]}  Nc6 {[%clk 0:02:59]} 3. d4 {[%clk 0:03:00]}  cxd4 {[%clk 0:03:00]} 4. Nxd4 {[%clk 0:03:01]}  Nf6 {[%clk 0:03:01]} 5. Nc3 {[%clk 0:03:00]}  e5 {[%clk 0:03:02]} 6. Ndb5 {[%clk 0:03:01]}  d6 {[%clk 0:03:02]} 7. Bg5 {[%clk 0:03:01]}  a6 {[%clk 0:03:01]} 8. Na3 {[%clk 0:03:02]}  b5 {[%clk 0:03:01]} 9. Nd5 {[%clk 0:03:02]}  Be7 {[%clk 0:03:01]} 10. Bxf6 {[%clk 0:03:03]}  Bxf6 {[%clk 0:03:02]} 11. c4 {[%clk 0:03:03]}  b4 {[%clk 0:03:01]} 12. Nc2 {[%clk 0:03:04]}  a5 {[%clk 0:02:57]} 13. g3 {[%clk 0:03:04]}  O-O {[%clk 0:02:57]} 14. Bg2 {[%clk 0:03:04]}  Rb8 {[%clk 0:02:55]} 15. O-O {[%clk 0:03:04]}  Ba6 {[%clk 0:02:50]} 16. b3 {[%clk 0:02:59]}  Re8 {[%clk 0:02:34]} 17. Qd3 {[%clk 0:02:48]}  g6 {[%clk 0:02:26]} 18. Rad1 {[%clk 0:02:47]}  Bg7 {[%clk 0:02:25]} 19. Nde3 {[%clk 0:02:36]}  Qb6 {[%clk 0:01:15]} 20. Nd5 {[%clk 0:02:19]}  Qa7 {[%clk 0:01:04]} 21. Kh1 {[%clk 0:02:10]}  Rbd8 {[%clk 0:01:03]} 22. h4 {[%clk 0:01:58]}  Bb7 {[%clk 0:00:55]} 23. h5 {[%clk 0:01:25]}  Qc5 {[%clk 0:00:48]} 24. Qf3 {[%clk 0:01:18]}  Nd4 {[%clk 0:00:36]} 25. Nxd4 {[%clk 0:01:12]}  exd4 {[%clk 0:00:37]} 26. Qg4 {[%clk 0:00:32]}  Bxd5 {[%clk 0:00:35]} 27. exd5 {[%clk 0:00:32]}  Re5 {[%clk 0:00:34]} 28. hxg6 {[%clk 0:00:31]}  hxg6 {[%clk 0:00:35]} 29. f4 {[%clk 0:00:30]}  Re3 {[%clk 0:00:25]} 30. f5 {[%clk 0:00:28]}  Qc8 {[%clk 0:00:26]} 31. Rxd4 {[%clk 0:00:19]}  Bxd4 {[%clk 0:00:24]} 32. Qxd4 {[%clk 0:00:20]}  Re5 {[%clk 0:00:22]} 33. fxg6 {[%clk 0:00:20]}  fxg6 {[%clk 0:00:22]} 34. Qf4 {[%clk 0:00:19]}  Rf8 {[%clk 0:00:21]} 35. Qh6 {[%clk 0:00:18]}  Rxf1+ {[%clk 0:00:21]} 36. Bxf1 {[%clk 0:00:19]}  Rh5+ {[%clk 0:00:18]} 0-1


[Site "https://www.chess.com"]

[Event "Titled Tuesday Blitz February 28 Early 2023"]
[White "Valgmae, Toomas"]
[Black "Alahakoon, Isuru"]
[WhiteFideId "4502523"]
[BlackFideId "9900993"]
[WhiteElo "2170"]
[BlackElo "1995"]
[Result "1-0"]
[Round "07"]
[TimeControl "180+2"]
[Date "2023.02.28"]
[WhiteClock "0:01:57"]
[BlackClock "0:00:15"]

1. d4 {[%clk 0:03:00]}  d5 {[%clk 0:02:58]} 2. c4 {[%clk 0:03:00]}  e6 {[%clk 0:02:58]} 3. Nc3 {[%clk 0:03:00]}  Nf6 {[%clk 0:02:58]} 4. Bg5 {[%clk 0:03:00]}  c6 {[%clk 0:02:57]} 5. e3 {[%clk 0:03:00]}  Nbd7 {[%clk 0:02:57]} 6. Nf3 {[%clk 0:02:59]}  Bd6 {[%clk 0:02:56]} 7. Bd3 {[%clk 0:02:58]}  O-O {[%clk 0:02:56]} 8. O-O {[%clk 0:02:58]}  Re8 {[%clk 0:02:52]} 9. Qc2 {[%clk 0:02:56]}  Nf8 {[%clk 0:02:51]} 10. Ne5 {[%clk 0:02:53]}  Qc7 {[%clk 0:02:42]} 11. f4 {[%clk 0:02:51]}  dxc4 {[%clk 0:02:41]} 12. Bxc4 {[%clk 0:02:47]}  Nd5 {[%clk 0:02:31]} 13. Qf2 {[%clk 0:02:19]}  f6 {[%clk 0:02:26]} 14. Bh4 {[%clk 0:02:18]}  fxe5 {[%clk 0:02:25]} 15. fxe5 {[%clk 0:02:18]}  Be7 {[%clk 0:02:25]} 16. Qf7+ {[%clk 0:02:14]}  Kh8 {[%clk 0:02:24]} 17. Qxe8 {[%clk 0:02:12]}  Kg8 {[%clk 0:00:15]} 18. Bxd5 {[%clk 0:01:57]} 1-0


[Site "https://www.chess.com"]

[Event "Titled Tuesday Blitz February 28 Early 2023"]
[White "Yayloyan, Konstantin"]
[Black "Prudnykova, Olga"]
[WhiteFideId "13307088"]
[BlackFideId "14121093"]
[WhiteElo "2190"]
[BlackElo "2174"]
[Result "0-1"]
[Round "07"]
[TimeControl "180+2"]
[Date "2023.02.28"]
[WhiteClock "0:00:12"]
[BlackClock "0:00:16"]

1. e4 {[%clk 0:03:00]}  c5 {[%clk 0:02:59]} 2. Nf3 {[%clk 0:02:59]}  Nf6 {[%clk 0:02:59]} 3. Nc3 {[%clk 0:02:55]}  e6 {[%clk 0:02:59]} 4. d4 {[%clk 0:02:52]}  cxd4 {[%clk 0:02:58]} 5. Nxd4 {[%clk 0:02:53]}  Nc6 {[%clk 0:02:59]} 6. Ndb5 {[%clk 0:02:51]}  Bc5 {[%clk 0:02:58]} 7. Be3 {[%clk 0:02:38]}  Bxe3 {[%clk 0:02:02]} 8. Nd6+ {[%clk 0:02:36]}  Ke7 {[%clk 0:02:02]} 9. fxe3 {[%clk 0:02:36]}  Qc7 {[%clk 0:01:55]} 10. Nc4 {[%clk 0:02:32]}  Ne5 {[%clk 0:01:43]} 11. Nxe5 {[%clk 0:02:09]}  Qxe5 {[%clk 0:01:42]} 12. Qd4 {[%clk 0:02:09]}  d6 {[%clk 0:01:32]} 13. O-O-O {[%clk 0:02:08]}  Bd7 {[%clk 0:01:27]} 14. Bd3 {[%clk 0:01:47]}  Rhc8 {[%clk 0:01:25]} 15. h3 {[%clk 0:01:47]}  Rc5 {[%clk 0:01:23]} 16. g4 {[%clk 0:01:43]}  Rac8 {[%clk 0:01:22]} 17. Kb1 {[%clk 0:01:39]}  a6 {[%clk 0:01:17]} 18. Ne2 {[%clk 0:01:34]}  b5 {[%clk 0:01:11]} 19. Rhg1 {[%clk 0:01:32]}  Bc6 {[%clk 0:00:58]} 20. Ng3 {[%clk 0:01:15]}  Bb7 {[%clk 0:00:55]} 21. a3 {[%clk 0:01:01]}  h6 {[%clk 0:00:54]} 22. Rdf1 {[%clk 0:00:59]}  Nd7 {[%clk 0:00:45]} 23. h4 {[%clk 0:00:53]}  f6 {[%clk 0:00:44]} 24. Nh5 {[%clk 0:00:52]}  Rg8 {[%clk 0:00:37]} 25. Qb4 {[%clk 0:00:38]}  a5 {[%clk 0:00:23]} 26. Qxa5 {[%clk 0:00:35]}  Bxe4 {[%clk 0:00:24]} 27. Nf4 {[%clk 0:00:31]}  Rgc8 {[%clk 0:00:19]} 28. g5 {[%clk 0:00:20]}  hxg5 {[%clk 0:00:19]} 29. hxg5 {[%clk 0:00:20]}  fxg5 {[%clk 0:00:19]} 30. Ng6+ {[%clk 0:00:20]}  Bxg6 {[%clk 0:00:18]} 31. Bxg6 {[%clk 0:00:21]}  Nf6 {[%clk 0:00:17]} 32. Bd3 {[%clk 0:00:18]}  R8c7 {[%clk 0:00:18]} 33. Qb4 {[%clk 0:00:18]}  Qd5 {[%clk 0:00:18]} 34. Qe1 {[%clk 0:00:15]}  Qe5 {[%clk 0:00:18]} 35. e4 {[%clk 0:00:15]}  d5 {[%clk 0:00:18]} 36. exd5 {[%clk 0:00:15]}  Qxe1+ {[%clk 0:00:18]} 37. Rxe1 {[%clk 0:00:16]}  Rxd5 {[%clk 0:00:17]} 38. Ref1 {[%clk 0:00:15]}  Kf7 {[%clk 0:00:17]} 39. Rf3 {[%clk 0:00:14]}  Rcd7 {[%clk 0:00:16]} 40. Rgf1 {[%clk 0:00:14]}  Re5 {[%clk 0:00:17]} 41. Rg3 {[%clk 0:00:13]}  Rdd5 {[%clk 0:00:17]} 42. Ka2 {[%clk 0:00:13]}  Ke7 {[%clk 0:00:17]} 43. Rfg1 {[%clk 0:00:13]}  g4 {[%clk 0:00:16]} 44. Re1 {[%clk 0:00:12]}  Rxe1 {[%clk 0:00:16]} 0-1


[Site "https://www.chess.com"]

[Event "Titled Tuesday Blitz February 28 Early 2023"]
[White "Lorenzo De La Riva, Lazaro"]
[Black "Fawzy, Adham"]
[WhiteFideId "2268809"]
[BlackFideId "10613129"]
[WhiteElo "2294"]
[BlackElo "2543"]
[Result "1-0"]
[Round "07"]
[TimeControl "180+2"]
[Date "2023.02.28"]
[WhiteClock "0:00:39"]
[BlackClock "0:00:11"]

1. e4 {[%clk 0:03:00]}  c5 {[%clk 0:02:59]} 2. Nf3 {[%clk 0:03:01]}  d6 {[%clk 0:03:00]} 3. d4 {[%clk 0:03:01]}  cxd4 {[%clk 0:03:01]} 4. Nxd4 {[%clk 0:03:02]}  Nf6 {[%clk 0:03:01]} 5. Nc3 {[%clk 0:03:02]}  a6 {[%clk 0:03:02]} 6. h3 {[%clk 0:03:03]}  Nc6 {[%clk 0:03:00]} 7. g4 {[%clk 0:03:00]}  g6 {[%clk 0:02:27]} 8. Bg2 {[%clk 0:02:59]}  Nxd4 {[%clk 0:02:19]} 9. Qxd4 {[%clk 0:03:00]}  Bg7 {[%clk 0:02:20]} 10. Qd1 {[%clk 0:02:51]}  O-O {[%clk 0:02:12]} 11. Be3 {[%clk 0:02:49]}  Be6 {[%clk 0:02:00]} 12. O-O {[%clk 0:02:47]}  Rc8 {[%clk 0:01:59]} 13. f4 {[%clk 0:02:46]}  b5 {[%clk 0:01:57]} 14. f5 {[%clk 0:02:43]}  Bc4 {[%clk 0:01:57]} 15. Rf2 {[%clk 0:02:36]}  Nd7 {[%clk 0:01:43]} 16. Bd4 {[%clk 0:02:17]}  Ne5 {[%clk 0:01:30]} 17. b3 {[%clk 0:02:16]}  b4 {[%clk 0:01:31]} 18. Na4 {[%clk 0:02:06]}  Bb5 {[%clk 0:01:29]} 19. Nb6 {[%clk 0:02:06]}  Rc6 {[%clk 0:01:23]} 20. Nd5 {[%clk 0:02:03]}  a5 {[%clk 0:01:10]} 21. g5 {[%clk 0:01:38]}  e6 {[%clk 0:00:32]} 22. f6 {[%clk 0:01:28]}  exd5 {[%clk 0:00:32]} 23. fxg7 {[%clk 0:01:23]}  Re8 {[%clk 0:00:31]} 24. exd5 {[%clk 0:01:23]}  Rc8 {[%clk 0:00:30]} 25. Qd2 {[%clk 0:01:04]}  Kxg7 {[%clk 0:00:16]} 26. Bf1 {[%clk 0:01:01]}  Bxf1 {[%clk 0:00:15]} 27. Raxf1 {[%clk 0:01:01]}  Re7 {[%clk 0:00:14]} 28. Bxe5+ {[%clk 0:00:59]}  dxe5 {[%clk 0:00:14]} 29. d6 {[%clk 0:01:00]}  Rd7 {[%clk 0:00:15]} 30. Qd5 {[%clk 0:00:58]}  Qe8 {[%clk 0:00:15]} 31. Rf6 {[%clk 0:00:54]}  Rcd8 {[%clk 0:00:14]} 32. h4 {[%clk 0:00:49]}  Kg8 {[%clk 0:00:14]} 33. h5 {[%clk 0:00:46]}  e4 {[%clk 0:00:14]} 34. hxg6 {[%clk 0:00:45]}  hxg6 {[%clk 0:00:14]} 35. Rxg6+ {[%clk 0:00:45]}  Kf8 {[%clk 0:00:15]} 36. Rh6 {[%clk 0:00:41]}  Kg7 {[%clk 0:00:14]} 37. Qd4+ {[%clk 0:00:40]}  f6 {[%clk 0:00:10]} 38. Qxf6+ {[%clk 0:00:39]}  Kg8 {[%clk 0:00:11]} 39. Rh8# {[%clk 0:00:39]} 1-0


[Site "https://www.chess.com"]